bitfinex/quotes_BTCUSD_20240905
["timestamp","ask_amount","ask_price","bid_price","bid_amount"]
[1725494400377,0.000816,58113.0,58112.0,0.18211632]
[1725494404146,0.000816,58113.0,58112.0,0.11981632]
[1725494405057,0.083916,58113.0,58112.0,0.04201632]
[1725494405315,0.18653541,58113.0,58112.0,0.04201632]
[1725494405554,0.31233847,58113.0,58112.0,0.04201632]
[1725494405797,0.19613255,58113.0,58112.0,0.04201632]
[1725494406258,0.32432743,58113.0,58112.0,0.04101632]
[1725494406479,0.19613255,58113.0,58112.0,0.04101632]
[1725494406691,0.30268965,58113.0,58112.0,0.04101632]
[1725494406902,0.29594839,58113.0,58112.0,0.04101632]
[1725494407343,0.19439129,58113.0,58112.0,0.04101632]
[1725494408036,0.19339129,58113.0,58112.0,0.04101632]
[1725494408274,0.27426524,58113.0,58112.0,0.04101632]
[1725494408495,0.27026524,58113.0,58112.0,0.04101632]
[1725494409184,0.27426524,58113.0,58112.0,0.04101632]
[1725494409409,0.19739129,58113.0,58112.0,0.04101632]
[1725494409862,0.20960729,58113.0,58112.0,0.04101632]
[1725494411228,0.26083214,58113.0,58112.0,0.04101632]
[1725494411691,0.12650729,58113.0,58112.0,0.04101632]
[1725494411907,0.12650729,58113.0,58112.0,0.10501632]
[1725494412126,0.02650729,58113.0,58112.0,0.10501632]
[1725494412351,0.02650729,58113.0,58112.0,0.18001632]
[1725494412352,0.021032,58113.0,58112.0,0.18001632]
[1725494412577,0.017032,58113.0,58112.0,0.18001632]
[1725494412797,0.004816,58113.0,58112.0,0.18001632]
[1725494413019,0.008816,58113.0,58112.0,0.18001632]
[1725494413253,0.004816,58113.0,58112.0,0.18001632]
[1725494413478,0.000816,58113.0,58112.0,0.20345752]
[1725494413703,0.000816,58122.0,58121.0,0.028]
[1725494413950,0.000816,58122.0,58121.0,0.26971889]
[1725494414187,0.000816,58122.0,58121.0,0.80705883]
[1725494414404,0.000816,58122.0,58121.0,0.87144283]
[1725494414631,0.000816,58122.0,58121.0,0.41222271]
[1725494414859,0.000816,58122.0,58121.0,0.48954762]
[1725494415170,0.000816,58122.0,58121.0,0.87144029]
[1725494415320,0.001816,58122.0,58121.0,0.4757408]
[1725494415543,0.002816,58122.0,58121.0,0.4867408]
[1725494416210,0.002816,58122.0,58121.0,0.42322271]
[1725494416211,0.001816,58122.0,58121.0,0.42322271]
[1725494416656,0.001816,58122.0,58121.0,0.42422271]
[1725494416880,0.002816,58122.0,58121.0,0.43822271]
[1725494417550,0.002816,58122.0,58121.0,0.42422271]
[1725494417551,0.001816,58122.0,58121.0,0.42422271]
[1725494417780,0.000815,58127.0,58126.0,0.1465]
[1725494418016,0.000815,58127.0,58126.0,0.38766287]
[1725494418242,0.000815,58127.0,58126.0,0.44012127]
[1725494418479,0.000815,58127.0,58126.0,0.44812127]
[1725494418668,0.000815,58127.0,58126.0,0.45812127]
[1725494419141,0.000815,58127.0,58126.0,0.46812127]
[1725494419383,0.000815,58127.0,58126.0,0.48012127]
[1725494419384,0.001815,58127.0,58126.0,0.48012127]
[1725494419851,0.000815,58127.0,58126.0,0.46812127]
[1725494420505,0.000815,58127.0,58126.0,0.23039856]
[1725494420760,0.000815,58127.0,58126.0,0.46812127]
[1725494421263,0.002815,58127.0,58126.0,0.49512127]
[1725494421502,0.001815,58127.0,58126.0,0.48212127]
[1725494421733,0.001815,58127.0,58126.0,0.48112127]
[1725494422460,0.001815,58127.0,58126.0,0.49512127]
[1725494422461,0.002815,58127.0,58126.0,0.49512127]
[1725494422693,0.002815,58127.0,58126.0,0.2308438]
[1725494422941,0.002815,58127.0,58126.0,0.2128438]
[1725494423412,0.002815,58127.0,58126.0,0.2208438]
[1725494424801,0.002815,58127.0,58126.0,0.22428416]
[1725494425019,0.002815,58127.0,58126.0,0.23628416]
[1725494427757,0.002815,58127.0,58126.0,0.2128438]
[1725494430707,0.002815,58127.0,58126.0,1.0730438]
[1725494433180,0.002815,58127.0,58126.0,1.4171238]
[1725494434352,0.002815,58127.0,58126.0,1.4371238]
[1725494435511,0.00015404,58137.0,58136.0,0.66013]
[1725494435928,0.00015404,58137.0,58136.0,0.69944344]
[1725494436614,0.00015404,58137.0,58136.0,0.35542344]
[1725494437026,0.00115404,58137.0,58136.0,0.71244344]
[1725494437893,0.00115404,58137.0,58136.0,0.72544344]
[1725494437894,0.00215404,58137.0,58136.0,0.72544344]
[1725494442715,0.00201324,58137.0,58136.0,0.72544344]
[1725494443397,0.00201324,58137.0,58136.0,0.38142344]
[1725494445024,0.00201324,58137.0,58136.0,1.41348344]
[1725494445258,0.00201324,58137.0,58136.0,1.06946344]
[1725494446432,0.00201324,58137.0,58136.0,1.07946344]
[1725494446652,0.00201324,58137.0,58136.0,1.09239368]
[1725494446882,0.00201324,58137.0,58136.0,1.43641368]
[1725494447359,0.00185249,58137.0,58136.0,1.43641368]
[1725494447812,0.00185249,58137.0,58136.0,1.42348344]
[1725494448032,0.00185249,58137.0,58136.0,1.43641319]
[1725494448444,0.00185249,58137.0,58136.0,1.42348344]
[1725494448673,0.00185249,58137.0,58136.0,1.43641299]
[1725494449560,0.00168782,58137.0,58136.0,1.43641299]
[1725494450712,0.00168782,58137.0,58136.0,1.43578276]
[1725494451407,0.00168782,58137.0,58136.0,1.43578274]
[1725494452549,0.00153427,58137.0,58136.0,1.43578274]
[1725494453656,0.00153427,58137.0,58136.0,1.42285321]
[1725494454140,0.00153427,58137.0,58136.0,1.43578272]
[1725494454807,0.00138684,58137.0,58136.0,1.43578272]
[1725494455255,0.00138684,58137.0,58136.0,1.435783]
[1725494455481,0.00138684,58137.0,58136.0,0.07824323]
[1725494455706,0.41311655,58137.0,58136.0,0.07824323]
[1725494455928,0.51740784,58137.0,58136.0,0.06694344]
[1725494456150,0.51740784,58137.0,58136.0,0.02763]
[1725494456371,0.51822284,58137.0,58136.0,0.02763]
[1725494459077,1.10195955,58137.0,58136.0,0.02763]
[1725494459975,1.09995955,58137.0,58136.0,0.02763]
[1725494460662,0.86423684,58137.0,58136.0,0.02763]
[1725494461135,0.86223684,58137.0,58136.0,0.02763]
[1725494461853,0.86423684,58137.0,58136.0,0.02763]
[1725494462078,0.86423684,58137.0,58136.0,0.09183]
[1725494462079,0.17420884,58137.0,58136.0,0.09183]
[1725494462326,0.17420884,58137.0,58136.0,0.02763]
[1725494462549,0.57832284,58137.0,58136.0,0.06694344]
[1725494462776,0.92233684,58137.0,58136.0,0.02763]
[1725494462997,0.92633684,58137.0,58136.0,0.02763]
[1725494463431,1.27035084,58137.0,58136.0,0.02763]
[1725494464370,0.98070225,58137.0,58136.0,0.02763]
[1725494464586,1.15270925,58137.0,58136.0,0.02763]
[1725494465270,1.15070925,58137.0,58136.0,0.02763]
[1725494465987,0.80669525,58137.0,58136.0,0.02763]
[1725494467862,0.80869525,58137.0,58136.0,0.02763]
[1725494468093,0.80669525,58137.0,58136.0,0.02763]
[1725494468545,0.80669525,58137.0,58136.0,0.06694344]
[1725494468761,0.80669525,58137.0,58136.0,0.02763]
[1725494468981,0.46268125,58137.0,58136.0,0.06694344]
[1725494469219,0.46268125,58137.0,58136.0,0.02763]
[1725494469444,0.46349625,58137.0,58136.0,0.02763]
[1725494469687,0.46349625,58137.0,58136.0,0.06694344]
[1725494469904,0.46349625,58137.0,58136.0,0.02763]
[1725494470352,0.174822,58137.0,58136.0,0.06694344]
[1725494470575,0.002815,58137.0,58136.0,0.06694344]
[1725494470797,0.000815,58137.0,58136.0,0.38465344]
[1725494471011,0.000815,58137.0,58136.0,0.72867344]
[1725494471466,0.000815,58137.0,58136.0,1.07269344]
[1725494472857,0.000815,58137.0,58136.0,0.72867344]
[1725494475394,0.000815,58137.0,58136.0,1.07269344]
[1725494476085,0.000815,58137.0,58136.0,1.32041615]
[1725494476557,0.000815,58137.0,58136.0,1.79257521]
[1725494476811,0.000815,58137.0,58136.0,1.17303119]
[1725494477029,0.000815,58137.0,58136.0,1.16010028]
[1725494477259,0.000815,58137.0,58136.0,1.51705119]
[1725494477497,0.000815,58137.0,58136.0,1.50410999]
[1725494477945,0.000815,58137.0,58136.0,1.7418327]
[1725494478170,0.000815,58137.0,58136.0,1.09562293]
[1725494479049,0.000815,58137.0,58136.0,1.43964293]
[1725494479266,0.000815,58137.0,58136.0,1.09562293]
[1725494479759,0.000815,58137.0,58136.0,0.21264344]
[1725494479951,0.000815,58137.0,58136.0,0.38465344]
[1725494484222,0.000815,58137.0,58136.0,0.72867344]
[1725494485510,0.000815,58137.0,58136.0,1.31041615]
[1725494485814,0.000815,58137.0,58136.0,1.32041615]
[1725494490056,0.000815,58137.0,58136.0,1.08269344]
[1725494492445,0.000815,58137.0,58136.0,1.42671344]
[1725494493905,0.000815,58137.0,58136.0,1.07269344]
[1725494495446,0.000815,58137.0,58136.0,1.08562371]
[1725494495667,0.000815,58137.0,58136.0,1.09562371]
[1725494497017,0.000815,58137.0,58136.0,1.58062665]
[1725494497272,0.000815,58137.0,58136.0,1.82145801]
[1725494497713,0.000815,58137.0,58136.0,1.13721445]
[1725494497937,0.000815,58137.0,58136.0,1.07269344]
[1725494498156,0.000815,58137.0,58136.0,1.09562318]
[1725494498376,0.000815,58137.0,58136.0,1.14721392]
[1725494498596,0.000815,58137.0,58136.0,1.43964318]
[1725494498835,0.000815,58137.0,58136.0,1.88585342]
[1725494499054,0.000815,58137.0,58136.0,1.87285342]
[1725494499266,0.000815,58137.0,58136.0,1.88685342]
[1725494499492,0.000815,58137.0,58136.0,1.9008544]
[1725494499715,0.000815,58137.0,58136.0,1.82347099]
[1725494500375,0.000815,58137.0,58136.0,1.90085118]
[1725494500601,0.000815,58137.0,58136.0,1.82347099]
[1725494501042,0.000815,58137.0,58136.0,1.81054125]
[1725494501276,0.000815,58137.0,58136.0,1.82347045]
[1725494501502,0.000815,58137.0,58136.0,1.90084669]
[1725494502163,0.000815,58137.0,58136.0,1.44164264]
[1725494502836,0.000815,58137.0,58136.0,1.49119188]
[1725494503547,0.000815,58137.0,58136.0,1.49282188]
[1725494504472,0.000815,58137.0,58136.0,1.44123627]
[1725494504677,0.000815,58137.0,58136.0,2.2544545]
[1725494505065,0.000815,58137.0,58136.0,2.17707546]
[1725494505290,0.000815,58137.0,58136.0,1.83305546]
[1725494505437,0.000815,58137.0,58136.0,1.81905546]
[1725494505637,0.000815,58137.0,58136.0,1.80505546]
[1725494505839,0.000815,58137.0,58136.0,2.17107546]
[1725494506072,0.000816,58148.0,58147.0,0.493855]
[1725494506240,0.000816,58148.0,58147.0,1.16938719]
[1725494506635,0.000816,58148.0,58147.0,1.20826088]
[1725494506882,0.000816,58148.0,58147.0,1.55221588]
[1725494507104,0.000816,58148.0,58147.0,1.95975359]
[1725494507324,0.000816,58148.0,58147.0,1.96975359]
[1725494507545,0.000816,58148.0,58147.0,1.51063863]
[1725494507786,0.000816,58148.0,58147.0,1.6020045]
[1725494508672,0.000816,58148.0,58147.0,1.90638772]
[1725494509117,0.000816,58148.0,58147.0,1.89238772]
[1725494509356,0.000816,58148.0,58147.0,1.89638772]
[1725494509577,0.000816,58148.0,58147.0,1.91038772]
[1725494509800,0.000816,58148.0,58147.0,1.9737018]
[1725494509993,0.000816,58148.0,58147.0,1.9597018]
[1725494510271,0.000816,58148.0,58147.0,2.3316568]
[1725494510517,0.000816,58148.0,58147.0,2.33164622]
[1725494511005,0.000816,58148.0,58147.0,2.31871702]
[1725494511483,0.000816,58148.0,58147.0,1.94989454]
[1725494512888,0.000816,58148.0,58147.0,2.33163358]
[1725494513619,0.000816,58148.0,58147.0,1.94989454]
[1725494513855,0.000816,58148.0,58147.0,2.31870697]
[1725494514826,0.000816,58148.0,58147.0,2.33163358]
[1725494515053,0.000816,58148.0,58147.0,1.87259104]
[1725494515271,0.000816,58148.0,58147.0,2.35748412]
[1725494515702,0.000816,58148.0,58147.0,2.25432962]
[1725494516150,0.000816,58148.0,58147.0,2.36927274]
[1725494516337,0.000816,58148.0,58147.0,2.38327274]
[1725494516587,0.000816,58148.0,58147.0,2.34335666]
[1725494516985,0.000816,58148.0,58147.0,2.25432962]
[1725494517216,0.000816,58148.0,58147.0,2.38327274]
[1725494517348,0.000816,58148.0,58147.0,2.3830896]
[1725494517576,0.000816,58148.0,58147.0,2.25430633]
[1725494518249,0.000816,58148.0,58147.0,2.24030633]
[1725494518658,0.000816,58148.0,58147.0,2.25430633]
[1725494518830,0.000816,58148.0,58147.0,2.26430633]
[1725494520469,0.000816,58148.0,58147.0,2.36729744]
[1725494520681,0.000816,58148.0,58147.0,2.26430633]
[1725494521386,0.000816,58148.0,58147.0,2.25030446]
[1725494522058,0.000816,58148.0,58147.0,2.36728882]
[1725494522304,0.000816,58148.0,58147.0,2.35328882]
[1725494522524,0.000816,58148.0,58147.0,2.37528455]
[1725494522746,0.000816,58148.0,58147.0,2.36128455]
[1725494523002,0.000816,58148.0,58147.0,2.37528455]
[1725494523461,0.000816,58148.0,58147.0,2.71923955]
[1725494523690,1e-08,58148.0,58147.0,2.81923955]
[1725494523925,1e-08,58148.0,58147.0,2.47528455]
[1725494524176,1e-08,58148.0,58147.0,2.44952541]
[1725494524413,1e-08,58148.0,58147.0,1.97659104]
[1725494525324,1e-08,58148.0,58147.0,1.96259104]
[1725494525563,1e-08,58148.0,58147.0,2.04206766]
[1725494525804,1e-08,58148.0,58147.0,2.04206652]
[1725494526038,1e-08,58148.0,58147.0,2.02806652]
[1725494526258,1e-08,58148.0,58147.0,1.99059104]
[1725494526482,1e-08,58148.0,58147.0,1.97659104]
[1725494527674,1e-08,58148.0,58147.0,1.5195423]
[1725494527919,1e-08,58148.0,58147.0,0.0658003]
[1725494528433,1e-08,58148.0,58147.0,0.2377773]
[1725494528678,1e-08,58148.0,58147.0,0.2517773]
[1725494528908,1e-08,58148.0,58147.0,0.22485069]
[1725494529130,1e-08,58148.0,58147.0,0.56880569]
[1725494529357,1e-08,58148.0,58147.0,0.58280569]
[1725494529574,1e-08,58148.0,58147.0,0.92676069]
[1725494532784,0.17397401,58148.0,58147.0,0.06687369]
[1725494533263,0.17397401,58148.0,58147.0,0.028]
[1725494533494,0.01422431,58148.0,58147.0,0.06745743]
[1725494533723,0.01422431,58148.0,58147.0,0.028]
[1725494533948,0.01422431,58148.0,58147.0,0.06745743]
[1725494535339,0.87409631,58148.0,58147.0,0.06745743]
[1725494535572,1.61709431,58148.0,58147.0,0.06745743]
[1725494535803,1.61709431,58148.0,58147.0,0.028]
[1725494536024,1.71709431,58148.0,58147.0,0.028]
[1725494536763,1.71709431,58148.0,58147.0,0.014]
[1725494536995,1.71709431,58148.0,58138.0,0.00163]
[1725494536996,1.23811,58139.0,58138.0,0.00163]
[1725494537233,1.51098535,58139.0,58138.0,0.00163]
[1725494537715,0.9063313,58139.0,58138.0,0.00163]
[1725494537951,0.894107,58139.0,58138.0,0.00163]
[1725494538183,0.90632572,58139.0,58138.0,0.00163]
[1725494538441,1.47576105,58139.0,58138.0,0.00163]
[1725494539347,1.47576105,58139.0,58138.0,0.01063]
[1725494539814,1.47576105,58139.0,58138.0,0.00163]
[1725494540056,1.47576105,58139.0,58138.0,0.01663]
[1725494540567,1.47576105,58139.0,58138.0,0.00763]
[1725494541029,1.23811,58139.0,58138.0,0.01363]
[1725494541731,0.520004,58139.0,58138.0,0.01363]
[1725494542206,0.864007,58139.0,58138.0,0.01363]
[1725494542441,0.894107,58139.0,58138.0,0.01363]
[1725494542679,0.917107,58139.0,58138.0,0.01363]
[1725494542904,1.21440953,58139.0,58138.0,0.01363]
[1725494543141,0.917107,58139.0,58138.0,0.01363]
[1725494543368,0.864007,58139.0,58138.0,0.00163]
[1725494543609,0.692006,58139.0,58138.0,0.00563]
[1725494543834,0.864007,58139.0,58138.0,0.00563]
[1725494544092,0.864007,58139.0,58138.0,0.00163]
[1725494544093,1.20801,58139.0,58138.0,0.00163]
[1725494544329,0.864007,58139.0,58138.0,0.00163]
[1725494544555,0.864007,58139.0,58138.0,0.00663]
[1725494545028,0.520004,58139.0,58138.0,0.00663]
[1725494545474,0.520004,58139.0,58138.0,0.04727724]
[1725494545709,0.520004,58139.0,58138.0,0.00663]
[1725494545954,0.002,58139.0,58138.0,0.05027724]
[1725494546187,0.002,58139.0,58138.0,0.01063]
[1725494546423,0.002,58139.0,58138.0,0.22228124]
[1725494546667,0.002,58145.0,58138.0,0.01063]
[1725494546892,0.173984,58145.0,58141.0,0.171994]
[1725494547114,0.002,58142.0,58141.0,0.171994]
[1725494547399,0.004,58144.0,58141.0,0.171994]
[1725494547630,0.002,58142.0,58141.0,0.171994]
[1725494549001,0.004,58144.0,58141.0,0.171994]
[1725494549465,0.004,58144.0,58141.0,0.172994]
[1725494549952,0.004,58144.0,58141.0,0.173994]
[1725494550181,0.34396,58147.0,58143.0,0.0639]
[1725494550182,0.004,58146.0,58143.0,0.0639]
[1725494550419,1e-08,58148.0,58146.0,0.0761]
[1725494550661,1e-08,58148.0,58147.0,0.51937097]
[1725494550885,1e-08,58148.0,58147.0,0.86332597]
[1725494551818,1e-08,58148.0,58147.0,0.921187]
[1725494552733,1e-08,58148.0,58147.0,1.017787]
[1725494552949,1e-08,58148.0,58147.0,1.012787]
[1725494553626,1e-08,58148.0,58147.0,1.003787]
[1725494553875,1e-08,58148.0,58147.0,1.031787]
[1725494554785,1e-08,58148.0,58147.0,1.375742]
[1725494555278,1e-08,58148.0,58147.0,1.385742]
[1725494555505,1e-08,58148.0,58147.0,1.729697]
[1725494555980,1e-08,58148.0,58147.0,1.715697]
[1725494556230,1e-08,58148.0,58147.0,1.701697]
[1725494556421,1e-08,58148.0,58147.0,1.729697]
[1725494557378,1e-08,58148.0,58147.0,1.42536193]
[1725494559877,1e-08,58148.0,58147.0,1.76931693]
[1725494560583,1e-08,58148.0,58147.0,1.77931693]
[1725494561504,1e-08,58148.0,58147.0,1.78731693]
[1725494561733,1e-08,58148.0,58147.0,1.88731693]
[1725494561961,0.000816,58152.0,58150.0,2.01192353]
[1725494562418,0.000816,58152.0,58150.0,2.05153436]
[1725494562701,0.000816,58152.0,58150.0,2.15153436]
[1725494562922,0.52650515,58168.0,58167.0,0.515755]
[1725494562923,0.002,58168.0,58167.0,0.515755]
[1725494563379,0.002,58169.0,58168.0,0.515746]
[1725494563616,0.002,58171.0,58170.0,0.171909]
[1725494564087,0.002,58171.0,58170.0,0.21145917]
[1725494565472,0.002,58171.0,58170.0,0.03955017]
[1725494565473,0.175906,58171.0,58170.0,0.03955017]
[1725494565692,0.004,58171.0,58170.0,0.03955017]
[1725494565913,0.002,58169.0,58168.0,0.171914]
[1725494566591,0.004,58169.0,58168.0,0.171914]
[1725494566815,0.002,58169.0,58168.0,0.515745]
[1725494568918,0.002,58170.0,58169.0,0.171912]
[1725494569443,0.002,58170.0,58169.0,0.515737]
[1725494570417,0.002,58170.0,58169.0,0.171912]
[1725494570688,0.002,58169.0,58168.0,0.171914]
[1725494571468,0.002,58168.0,58167.0,0.171917]
[1725494571718,0.002,58165.0,58163.0,0.171929]
[1725494571968,0.002,58166.0,58163.0,0.171929]
[1725494572900,0.004,58166.0,58161.0,0.171934]
[1725494573116,0.002,58164.0,58163.0,0.004]
[1725494573346,0.002,58165.0,58163.0,0.004]
[1725494573577,0.002,58165.0,58163.0,0.007]
[1725494573801,0.002,58165.0,58164.0,0.03956836]
[1725494574052,0.173924,58165.0,58164.0,0.03956836]
[1725494574276,0.173927,58164.0,58163.0,0.004]
[1725494574497,0.517782,58164.0,58163.0,0.004]
[1725494574721,0.171932,58163.0,58159.0,0.234542]
[1725494574941,0.173932,58163.0,58161.0,0.004]
[1725494575418,0.173932,58163.0,58161.0,0.007]
[1725494575647,0.173932,58163.0,58161.0,0.003]
[1725494576067,0.173932,58163.0,58161.0,0.00463]
[1725494576332,0.173928,58164.0,58161.0,0.00163]
[1725494576557,0.173928,58164.0,58161.0,0.00763]
[1725494577687,0.171931,58163.0,58161.0,0.00763]
[1725494577945,0.173931,58163.0,58161.0,0.00763]
[1725494578173,0.173931,58163.0,58161.0,0.01463]
[1725494578462,0.171931,58163.0,58161.0,0.00863]
[1725494578694,0.171925,58165.0,58161.0,0.01363]
[1725494578964,0.173927,58165.0,58161.0,0.180566]
[1725494579246,0.173927,58165.0,58161.0,0.186566]
[1725494579485,0.171928,58164.0,58161.0,0.186566]
[1725494579749,0.171928,58164.0,58161.0,0.00763]
[1725494579958,0.171928,58164.0,58161.0,0.00163]
[1725494580182,0.171928,58164.0,58161.0,0.178566]
[1725494580404,0.171928,58164.0,58161.0,0.182566]
[1725494580631,0.173925,58165.0,58162.0,0.171932]
[1725494580860,0.002,58166.0,58162.0,0.0034384]
[1725494581103,0.002,58166.0,58161.0,0.01063]
[1725494581104,0.173933,58162.0,58161.0,0.01063]
[1725494581345,1.207534,58162.0,58161.0,0.00563]
[1725494581587,1.237634,58162.0,58161.0,0.00763]
[1725494581850,1.704501,58162.0,58161.0,0.00763]
[1725494582087,1.704501,58162.0,58161.0,0.01263]
[1725494582317,1.704501,58162.0,58161.0,0.00763]
[1725494582783,1.704501,58162.0,58161.0,0.00163]
[1725494583707,1.75651609,58162.0,58161.0,0.00163]
[1725494584190,1.80343203,58162.0,58161.0,0.00163]
[1725494584705,1.80443203,58162.0,58161.0,0.00163]
[1725494585834,2.15390193,58162.0,58161.0,0.00163]
[1725494587202,1.81003493,58162.0,58161.0,0.00163]
[1725494587457,1.3672369,58162.0,58161.0,0.00163]
[1725494587690,1.3141369,58162.0,58161.0,0.00163]
[1725494587912,0.8702699,58162.0,58161.0,0.00163]
[1725494588143,0.864667,58162.0,58161.0,0.00163]
[1725494588369,0.863667,58162.0,58161.0,0.00163]
[1725494588834,0.865667,58162.0,58161.0,0.00163]
[1725494589068,0.864667,58162.0,58161.0,0.00163]
[1725494589302,0.963667,58162.0,58161.0,0.00163]
[1725494589567,0.965667,58162.0,58161.0,0.00163]
[1725494589812,1.309534,58162.0,58161.0,0.00163]
[1725494590047,0.965667,58162.0,58161.0,0.00163]
[1725494592163,0.963667,58162.0,58161.0,0.00163]
[1725494592610,0.963667,58162.0,58161.0,0.00363]
[1725494594842,1.305534,58162.0,58161.0,0.00363]
[1725494595065,0.961667,58162.0,58161.0,0.00363]
[1725494595312,0.963667,58162.0,58161.0,0.00363]
[1725494596026,0.963667,58162.0,58157.0,0.07886829]
[1725494596027,0.517835,58158.0,58157.0,0.07886829]
[1725494596472,0.863725,58158.0,58157.0,0.07886829]
[1725494597584,0.861725,58158.0,58157.0,0.07886829]
[1725494597808,0.863725,58158.0,58157.0,0.08486829]
[1725494598273,0.863725,58158.0,58157.0,0.08986829]
[1725494598760,1.50491753,58158.0,58157.0,0.011]
[1725494599009,1.97180753,58158.0,58157.0,0.011]
[1725494599475,1.97180753,58158.0,58157.0,0.006]
[1725494599709,1.97180753,58158.0,58157.0,0.009]
[1725494600414,1.97180753,58158.0,58157.0,0.003]
[1725494600640,1.97180753,58158.0,58157.0,0.007]
[1725494601134,1.97180753,58158.0,58157.0,0.003]
[1725494601583,0.515932,58147.0,58146.0,0.0627]
[1725494601799,0.515932,58147.0,58146.0,0.10232296]
[1725494601800,0.517932,58147.0,58146.0,0.10232296]
[1725494602253,0.859887,58147.0,58146.0,0.0627]
[1725494603153,0.859887,58147.0,58146.0,0.0747]
[1725494603377,0.861887,58147.0,58146.0,0.0747]
[1725494604262,0.861887,58147.0,58146.0,0.0867]
[1725494606045,1.50514453,58147.0,58146.0,0.024]
[1725494606286,1.97103056,58147.0,58146.0,0.024]
[1725494606506,1.87209953,58147.0,58146.0,0.024]
[1725494606947,1.87209953,58147.0,58146.0,0.012]
[1725494607138,1.52814453,58147.0,58146.0,0.017]
[1725494607396,1.52614453,58147.0,58146.0,0.017]
[1725494607680,1.52814453,58147.0,58146.0,0.017]
[1725494607898,1.52814453,58147.0,58146.0,0.012]
[1725494608091,1.53014453,58147.0,58146.0,0.012]
[1725494608316,1.203926,58143.0,58142.0,0.0661]
[1725494608563,1.50522853,58143.0,58142.0,0.0661]
[1725494609050,0.863947,58143.0,58142.0,0.0661]
[1725494609297,0.863947,58143.0,58142.0,0.1411]
[1725494609781,1.16124953,58143.0,58142.0,0.1411]
[1725494610025,1.16124953,58143.0,58142.0,0.1431]
[1725494610510,1.16124953,58143.0,58142.0,0.1441]
[1725494611023,0.98926053,58143.0,58142.0,0.1441]
[1725494611275,0.863947,58143.0,58142.0,0.1441]
[1725494612563,0.519968,58143.0,58142.0,0.1441]
[1725494613568,0.173989,58143.0,58142.0,0.1441]
[1725494613773,0.173989,58143.0,58142.0,0.3557271]
[1725494613774,0.002,58143.0,58142.0,0.3557271]
[1725494614018,0.002,58143.0,58142.0,0.1837351]
[1725494614637,0.004,58143.0,58142.0,0.1837351]
[1725494614860,0.002,58143.0,58142.0,0.1837351]
[1725494615291,0.002,58143.0,58142.0,0.1853651]
[1725494616572,0.002,58143.0,58142.0,0.3573571]
[1725494617043,0.002,58144.0,58143.0,0.1423]
[1725494617523,0.002,58144.0,58143.0,0.3539182]
[1725494617980,0.002,58146.0,58143.0,0.3539182]
[1725494617981,0.002,58145.0,58143.0,0.3539182]
[1725494618220,0.002,58147.0,58146.0,0.17198]
[1725494618445,0.002,58147.0,58146.0,0.31418]
[1725494618673,0.002,58147.0,58146.0,0.3538001]
[1725494618939,0.002,58147.0,58146.0,0.1818201]
[1725494619409,0.004,58147.0,58146.0,0.1818201]
[1725494619664,0.004,58147.0,58146.0,0.1838201]
[1725494620125,0.002,58147.0,58146.0,0.3588001]
[1725494620584,0.002,58147.0,58146.0,1.0467221]
[1725494620817,0.002,58150.0,58149.0,0.247272]
[1725494621050,0.002,58150.0,58149.0,0.653416]
[1725494621281,0.002,58150.0,58149.0,0.69302699]
[1725494621533,0.002,58152.0,58151.0,0.309466]
[1725494621999,0.002,58152.0,58151.0,0.34907093]
[1725494622231,0.004,58152.0,58151.0,0.69200293]
[1725494622703,0.006,58152.0,58151.0,0.34807093]
[1725494623644,0.004,58152.0,58151.0,0.34807093]
[1725494625081,0.006,58152.0,58151.0,0.34807093]
[1725494627171,0.006,58152.0,58151.0,0.17710493]
[1725494628489,0.006815,58152.0,58151.0,0.17710493]
[1725494631406,0.178778,58152.0,58151.0,0.17710493]
[1725494634084,0.004815,58152.0,58151.0,0.34907093]
[1725494635262,0.002815,58152.0,58151.0,0.34907093]
[1725494635450,0.002815,58152.0,58151.0,0.35807093]
[1725494635663,0.002815,58152.0,58151.0,0.36307093]
[1725494636116,0.002815,58152.0,58151.0,0.70200293]
[1725494636341,0.002815,58152.0,58151.0,1.05493493]
[1725494638642,0.004815,58152.0,58151.0,1.05493493]
[1725494638880,0.002815,58152.0,58151.0,1.05493493]
[1725494642878,0.000815,58152.0,58151.0,1.05656493]
[1725494644008,0.002815,58152.0,58151.0,1.05656493]
[1725494644247,0.000815,58152.0,58151.0,1.05656493]
[1725494645170,0.002815,58152.0,58151.0,0.71263293]
[1725494645402,0.002815,58152.0,58151.0,0.36870093]
[1725494645635,0.002815,58152.0,58151.0,0.19673493]
[1725494645942,0.000815,58152.0,58151.0,0.19673493]
[1725494647446,0.002815,58152.0,58151.0,0.19673493]
[1725494648102,0.000815,58152.0,58151.0,0.19673493]
[1725494649559,0.000815,58152.0,58151.0,0.71263293]
[1725494650232,0.000815,58152.0,58151.0,1.05656493]
[1725494652148,0.000815,58152.0,58151.0,0.71263293]
[1725494652591,0.000815,58152.0,58151.0,1.05656493]
[1725494654516,0.000815,58152.0,58151.0,1.40049693]
[1725494655365,0.000815,58152.0,58151.0,1.04756493]
[1725494655579,0.000815,58152.0,58151.0,0.35970093]
[1725494655783,0.002815,58152.0,58151.0,0.35970093]
[1725494655998,0.000815,58152.0,58151.0,0.35970093]
[1725494656202,0.002815,58152.0,58151.0,0.35970093]
[1725494656402,0.000815,58152.0,58151.0,0.35070093]
[1725494656612,0.000815,58152.0,58151.0,0.36470093]
[1725494656819,0.002815,58152.0,58151.0,0.37870093]
[1725494657043,0.002815,58152.0,58151.0,0.36470093]
[1725494657250,0.002815,58152.0,58151.0,0.17873493]
[1725494657453,0.174778,58152.0,58151.0,0.06723493]
[1725494658082,0.518704,58152.0,58151.0,0.05423493]
[1725494658286,0.518704,58152.0,58151.0,0.05223493]
[1725494658505,0.174778,58152.0,58151.0,0.05223493]
[1725494659750,0.174778,58152.0,58151.0,0.04123493]
[1725494659958,0.174778,58152.0,58151.0,0.05023493]
[1725494660790,0.174778,58152.0,58151.0,0.05923493]
[1725494663357,0.518704,58152.0,58151.0,0.05923493]